Workbook

Sheet finance
A1: počet klientů | B1: 2 | C1: 3 | D1: 4 | E1: 5 | F1: 6 | G1: 7 | H1: 8 | I1: 10 | J1: 11 | K1: 12 | L1: 13 | M1: 14 | N1: 15 | O1: 16 | P1: 17 | R1: kurz euro ke CZK | S1: =26*1.1 -> 28.6
R2: kurz USD k CZK | S2: =22*1.1 -> 24.2
A3: suma výdajů | B3: =SUM(B7:B12) -> 67800 | C3: =SUM(C7:C12) -> 76270 | D3: 90680 | E3: 104870 | F3: 119280 | G3: 127750 | H3: 142160 | I3: 180550 | J3: 189020 | K3: 203430 | L3: 211900 | M3: 232030 | N3: 240500 | O3: 254910 | P3: 263380 | R3: kurz TRZ k EURU | S3: 13
A4: suma se ziskem | B4: =B3+B13 -> 81360 | C4: =C3+C13 -> 91524 | D4: 108816 | E4: 125844 | F4: 143136 | G4: 153300 | H4: 170592 | I4: 216660 | J4: 226824 | K4: 244116 | L4: 254280 | M4: 278436 | N4: 288600 | O4: 305892 | P4: 316056
A5: cena zájezdu | B5: =B4/B1 -> 40680 | C5: =C4/C1 -> 30508 | D5: 27204 | E5: 25168.8 | F5: 23856 | G5: 21900 | H5: 21324 | I5: 21666 | J5: 20620.36364 | K5: 20343 | L5: 19560 | M5: 19888.28571 | N5: 19240 | O5: 19118.25 | P5: 18591.52941 | R5: cena auta 5 míst v EUR na den | S5: 30
R6: cena auta 9 míst v EUR na den | S6: 50
A7: letenky (CZK) | B7: =(B$1+1)*$S$12*$S$2 -> 25410 | C7: =(C$1+1)*$S$12*$S$2 -> 33880 | D7: =(D$1+1)*$S$12*$S$2 -> 42350 | E7: 50820 | F7: 59290 | G7: 67760 | H7: 76230 | I7: 93170 | J7: 101640 | K7: 110110 | L7: 118580 | M7: 127050 | N7: 135520 | O7: 143990 | P7: 152460
A8: půjčení auta | B8: =IF(B$1<5,$S$5*$S$18*$S$1,IF(B$1<9,$S$6*$S$18*$S$1,IF(B$1<14,($S$5+$S$6)*$S$18*$S$1,2*$S$6*$S$18*$S$1))) -> 8580 | C8: =IF(C$1<5,$S$5*$S$18*$S$1,IF(C$1<9,$S$6*$S$18*$S$1,IF(C$1<14,($S$5+$S$6)*$S$18*$S$1,2*$S$6*$S$18*$S$1))) -> 8580 | D8: =IF(D$1<5,$S$5*$S$18*$S$1,IF(D$1<9,$S$6*$S$18*$S$1,IF(D$1<14,($S$5+$S$6)*$S$18*$S$1,2*$S$6*$S$18*$S$1))) -> 8580 | E8: 14300 | F8: 14300 | G8: 14300 | H8: 14300 | I8: 22880 | J8: 22880 | K8: 22880 | L8: 22880 | M8: 28600 | N8: 28600 | O8: 28600 | P8: 28600 | R8: cena benzínu v TRZ za litr | S8: 15
A9: benzín | B9: =$S$9*$S$10*$S$8*$S$1/(100*$S$3) -> 6930 | C9: =$S$9*$S$10*$S$8*$S$1/(100*$S$3) -> 6930 | D9: 6930 | E9: 6930 | F9: 6930 | G9: 6930 | H9: 6930 | I9: =2*$S$9*$S$10*$S$8*$S$1/(100*$S$3) -> 13860 | J9: =2*$S$9*$S$10*$S$8*$S$1/(100*$S$3) -> 13860 | K9: 13860 | L9: 13860 | M9: 13860 | N9: 13860 | O9: 13860 | P9: 13860 | R9: počet kilometrů | S9: 3000
A10: ubytování | B10: =_xlfn.CEILING.PRECISE((B$1+1)/2)*($S$18-1)*$S$13*$S$1/$S$3 -> 11880 | C10: =_xlfn.CEILING.PRECISE((C$1+1)/2)*($S$18-1)*$S$13*$S$1/$S$3 -> 11880 | D10: =_xlfn.CEILING.PRECISE((D$1+1)/2)*($S$18-1)*$S$13*$S$1/$S$3 -> 17820 | E10: =_xlfn.CEILING.PRECISE((E$1+1)/2)*($S$18-1)*$S$13*$S$1/$S$3 -> 17820 | F10: =_xlfn.CEILING.PRECISE((F$1+1)/2)*($S$18-1)*$S$13*$S$1/$S$3 -> 23760 | G10: =_xlfn.CEILING.PRECISE((G$1+1)/2)*($S$18-1)*$S$13*$S$1/$S$3 -> 23760 | H10: =_xlfn.CEILING.PRECISE((H$1+1)/2)*($S$18-1)*$S$13*$S$1/$S$3 -> 29700 | I10: =_xlfn.CEILING.PRECISE((I$1+1)/2)*($S$18-1)*$S$13*$S$1/$S$3 -> 35640 | J10: =_xlfn.CEILING.PRECISE((J$1+1)/2)*($S$18-1)*$S$13*$S$1/$S$3 -> 35640 | K10: =_xlfn.CEILING.PRECISE((K$1+1)/2)*($S$18-1)*$S$13*$S$1/$S$3 -> 41580 | L10: =_xlfn.CEILING.PRECISE((L$1+1)/2)*($S$18-1)*$S$13*$S$1/$S$3 -> 41580 | M10: =_xlfn.CEILING.PRECISE((M$1+1)/2)*($S$18-1)*$S$13*$S$1/$S$3 -> 47520 | N10: =_xlfn.CEILING.PRECISE((N$1+1)/2)*($S$18-1)*$S$13*$S$1/$S$3 -> 47520 | O10: =_xlfn.CEILING.PRECISE((O$1+1)/2)*($S$18-1)*$S$13*$S$1/$S$3 -> 53460 | P10: =_xlfn.CEILING.PRECISE((P$1+1)/2)*($S$18-1)*$S$13*$S$1/$S$3 -> 53460 | R10: spotřeba v litrech na 100km | S10: 7
A12: plat průvodce | B12: =$S$15*$S$18 -> 15000 | C12: =$S$15*$S$18 -> 15000 | D12: 15000 | E12: 15000 | F12: 15000 | G12: 15000 | H12: 15000 | I12: 15000 | J12: 15000 | K12: 15000 | L12: 15000 | M12: 15000 | N12: 15000 | O12: 15000 | P12: 15000 | R12: cena letenky v USD na osobu | S12: 350
A13: zisk CK | B13: =B3*($S$16/100) -> 13560 | C13: =C3*($S$16/100) -> 15254 | D13: 18136 | E13: 20974 | F13: 23856 | G13: 25550 | H13: 28432 | I13: 36110 | J13: 37804 | K13: 40686 | L13: 42380 | M13: 46406 | N13: 48100 | O13: 50982 | P13: 52676 | R13: cena ubytování v TRZ za dvoulůžák na noc | S13: =300 -> 300
R15: plat průvodce na den | S15: 1500
R16: zisk CK v % z nákladů | S16: 20
R18: počet dní | S18: 10
